bitfinex-derivatives/quotes_SOLF0:USTF0_20250817
["timestamp","ask_amount","ask_price","bid_price","bid_amount"]
[1755439001256,2.84,193.17,193.12,2.78]
[1755439001468,2.84,193.21,193.12,2.78]
[1755439002863,2.84,193.18,193.14,2.78]
[1755439003064,2.84,193.2,193.14,2.78]
[1755439003269,3.88,193.19,193.14,2.78]
[1755439003469,2.84,193.25,193.14,2.78]
[1755439003661,3.88,193.25,193.14,2.78]
[1755439003856,2.84,193.24,193.14,2.78]
[1755439004263,1.04,193.23,193.14,2.78]
[1755439004466,2.84,193.22,193.14,2.78]
[1755439005667,5.45442794,193.2,192.98,2.78]
[1755439005869,5.45442794,193.2,193.07,2.78]
[1755439006064,2.84,193.18,193.07,2.78]
[1755439010467,1.04,193.17,193.07,2.78]
[1755439010672,2.79,193.16,193.07,2.78]
[1755439011172,2.79,193.14,193.07,2.78]
[1755439013277,1.04,193.13,193.07,2.78]
[1755439013472,2.79,193.12,193.07,2.78]
[1755439013674,2.79,193.11,193.07,2.78]
[1755439014671,2.79,193.15,193.07,2.78]
[1755439014876,3.83,193.15,193.07,2.78]
[1755439015175,2.79,193.14,193.07,2.78]
[1755439016981,1.04,193.13,193.07,2.78]
[1755439019973,3.83,193.13,193.07,2.78]
[1755439020575,2.79,193.11,193.07,2.78]
[1755439021182,2.79,193.1,193.07,2.78]
[1755439021480,2.79,193.1,193.06,2.61442794]
[1755439021682,2.79,193.1,193.06,2.88]
[1755439022084,2.79,193.1,193.04,2.88]
[1755439024477,2.61442794,193.16,193.04,2.88]
[1755439024478,2.79,193.15,193.04,2.88]
[1755439024680,2.79,193.14,193.04,2.88]
[1755439025378,2.79,193.12,193.04,2.88]
[1755439025886,2.79,193.1,193.04,2.88]
[1755439026085,1.04,193.16,193.09,2.61442794]
[1755439026285,1.04,193.22,193.1,2.88]
[1755439026485,2.79,193.2,193.1,2.88]
[1755439026682,8.3963626,193.19,193.1,2.88]
[1755439026887,2.79,193.17,193.1,2.88]
[1755439027688,1.04,193.16,193.1,2.88]
[1755439027883,2.79,193.15,193.09,5.49442794]
[1755439028090,2.79,193.15,193.09,2.61442794]
[1755439028285,2.79,193.15,193.1,2.88]
[1755439028491,2.79,193.15,193.12,2.61442794]
[1755439028686,3.83,193.15,193.14,2.88]
[1755439028886,2.79,193.15,193.14,2.88]
[1755439029280,2.79,193.15,193.12,2.61442794]
[1755439029484,2.79,193.14,193.13,2.88]
[1755439029791,2.79,193.14,193.12,2.61442794]
[1755439029984,2.79,193.25,193.13,2.88]
[1755439030185,2.79,193.23,193.21,2.88]
[1755439030584,2.79,193.22,193.21,2.88]
[1755439030789,2.79,193.22,193.2,2.61442794]
[1755439030991,2.79,193.21,193.2,2.61442794]
[1755439031196,2.79,193.3,193.18,2.88]
[1755439031392,2.79,193.28,193.18,2.88]
[1755439031592,2.79,193.26,193.18,2.88]
[1755439031789,2.79,193.24,193.18,2.88]
[1755439031995,2.79,193.24,193.21,2.88]
[1755439032292,2.79,193.24,193.22,2.88]
[1755439032486,2.79,193.23,193.22,2.88]
[1755439033098,2.79,193.23,193.2,5.49442794]
[1755439033294,2.79,193.22,193.21,2.88]
[1755439033599,2.79,193.22,193.19,2.88]
[1755439033794,2.79,193.21,193.18,2.61442794]
[1755439033999,2.79,193.29,193.18,5.49442794]
[1755439034194,2.79,193.27,193.18,5.49442794]
[1755439034395,8.26422735,193.26,193.18,5.49442794]
[1755439034696,2.79,193.24,193.18,5.49442794]
[1755439037098,2.79,193.24,193.18,2.61442794]
[1755439037401,2.79,193.29,193.2,2.88]
[1755439037603,3.84461147,193.28,193.2,2.88]
[1755439037903,3.01,193.26,193.17,3.01]
[1755439038097,3.01,193.24,193.17,3.01]
[1755439038299,3.01,193.22,193.15,2.61442794]
[1755439038599,3.84821294,193.21,193.15,3.01]
[1755439038789,2.61442794,193.27,193.15,3.01]
[1755439038790,3.01,193.2,193.15,2.61442794]
[1755439038990,3.01,193.2,193.16,3.01]
[1755439040202,3.01,193.28,193.17,3.01]
[1755439040401,3.01,193.26,193.16,3.01]
[1755439040600,8.3078302,193.25,193.16,3.01]
[1755439040803,3.01,193.23,193.16,3.01]
[1755439041104,3.01,193.21,193.16,3.01]
[1755439041504,1.04,193.21,193.16,3.01]
[1755439041700,3.01,193.19,193.16,3.01]
[1755439042405,5.77548179,193.28,193.15,2.61442794]
[1755439042607,2.61442794,193.3,193.13,3.01]
[1755439042608,3.01,193.26,193.13,3.01]
[1755439042798,3.01,193.24,193.13,3.01]
[1755439042998,3.01,193.22,193.13,3.01]
[1755439043204,3.01,193.2,193.13,3.01]
[1755439043599,3.01,193.18,193.13,3.01]
[1755439043904,3.01,193.17,193.13,3.01]
[1755439044803,3.01,193.19,193.13,3.01]
[1755439046106,3.01,193.17,193.13,3.01]
[1755439046303,3.01,193.17,193.1,3.01]
[1755439047704,3.01,193.17,193.09,2.61442794]
[1755439048205,3.01,193.17,193.1,3.01]
[1755439050813,3.01,193.17,193.09,2.61442794]
[1755439051311,3.01,193.17,193.1,3.01]
[1755439051911,3.01,193.17,193.09,2.61442794]
[1755439052112,3.01,193.17,193.09,5.62442794]
[1755439052508,3.01,193.17,193.1,3.01]
[1755439052707,2.61442794,193.24,193.1,3.01]
[1755439052908,3.01,193.22,193.13,3.01]
[1755439053109,4.918371,193.23,193.13,3.01]
[1755439053110,3.01,193.2,193.13,3.01]
[1755439053509,3.01,193.18,193.13,3.01]
[1755439053904,4.05,193.18,193.13,3.01]
[1755439054109,5.77548179,193.29,193.16,3.01]
[1755439054310,3.01,193.27,193.16,3.01]
[1755439054503,8.32224709,193.26,193.16,3.01]
[1755439054710,3.01,193.24,193.16,3.01]
[1755439054911,3.01,193.22,193.16,3.01]
[1755439055316,3.01,193.19,193.16,3.01]
[1755439058319,3.01,193.28,193.16,3.01]
[1755439058509,9.61931941,193.27,193.16,3.01]
[1755439058714,9.61931941,193.27,193.08,2.61442794]
[1755439058715,3.01,193.25,193.19,3.01]
[1755439058915,3.01,193.23,193.15,2.61442794]
[1755439059115,3.01,193.21,193.15,5.62442794]
[1755439059311,3.01,193.21,193.18,2.61442794]
[1755439059519,3.01,193.21,193.18,5.62442794]
[1755439060517,3.01,193.21,193.19,3.01]
[1755439060720,3.01,193.29,193.19,3.01]
[1755439060922,3.01,193.27,193.19,3.01]
[1755439061120,8.32719777,193.26,193.19,3.01]
[1755439061319,3.01,193.24,193.17,3.01]
[1755439061621,3.01,193.22,193.18,3.01]
[1755439062016,4.05,193.22,193.18,3.01]
[1755439062217,3.01,193.21,193.18,3.01]
[1755439063324,4.05,193.22,193.16,3.01]
[1755439064025,1.04,193.22,193.16,3.01]
[1755439064223,3.01,193.21,193.16,3.01]
[1755439065118,3.01,193.2,193.17,3.01]
[1755439065321,3.01,193.19,193.18,3.01]
[1755439067528,3.04,193.29,193.18,3.01]
[1755439067714,3.04,193.27,193.18,3.01]
[1755439067919,3.04,193.25,193.18,3.01]
[1755439068118,3.04,193.23,193.19,2.84]
[1755439071328,3.04,193.23,193.14,128.36]
[1755439071329,3.04,193.23,193.2,2.84]
[1755439071627,3.04,193.21,193.15,2.84]
[1755439072019,3.04,193.2,193.15,2.84]
[1755439075127,1.04,193.19,193.14,2.61442794]
[1755439075330,3.04,193.18,193.14,2.61442794]
[1755439075530,3.04,193.18,193.16,2.84]
[1755439075730,2.61442794,193.27,193.16,2.84]
[1755439075920,3.04,193.25,193.16,2.84]
[1755439076121,3.04,193.23,193.16,2.84]
[1755439076320,3.04,193.21,193.14,2.61442794]
[1755439076526,3.04,193.21,193.15,2.84]
[1755439077733,3.04,193.19,193.14,5.45442794]
[1755439077934,3.04,193.19,193.15,2.84]
[1755439078134,3.04,193.17,193.15,2.84]
[1755439078929,3.04,193.16,193.15,2.84]
[1755439080334,3.04,193.16,193.12,2.61442794]
[1755439080538,3.04,193.16,193.12,2.84]
[1755439082437,3.04,193.16,193.09,130.55442794]
[1755439082627,1.04,193.15,193.13,2.84]
[1755439082834,3.04,193.14,193.13,2.84]
[1755439083432,3.04,193.23,193.13,2.84]
[1755439083636,9.64952413,193.22,193.13,2.84]
[1755439083937,3.04,193.2,193.13,2.84]
[1755439084136,3.04,193.18,193.13,2.84]
[1755439089541,3.04,193.18,193.11,2.61442794]
[1755439089542,6.93766935,193.17,192.99,62.0]
[1755439089740,3.04,193.15,193.08,2.84]
[1755439089943,3.04,193.19,193.11,2.84]
[1755439090144,3.04,193.19,193.14,2.84]
[1755439090540,4.08,193.18,193.14,2.84]
[1755439090843,3.04,193.18,193.14,2.84]
[1755439091141,4.08,193.18,193.14,2.84]
[1755439091342,3.04,193.17,193.14,2.84]
[1755439091534,1.04,193.18,193.13,130.59442794]
[1755439091844,3.04,193.17,193.13,133.43442794]
[1755439092434,1.04,193.18,193.14,2.84]
[1755439092639,3.04,193.17,193.14,2.84]
[1755439092840,3.04,193.16,193.14,2.84]
[1755439093032,3.04,193.16,193.15,2.84]
[1755439095047,3.04,193.16,193.13,127.98]
[1755439095240,3.04,193.16,193.14,2.84]
[1755439095440,3.04,193.16,193.15,2.84]
[1755439099747,5.77548179,193.25,193.15,2.84]
[1755439099951,2.78,193.23,193.15,2.84]
[1755439100248,2.78,193.21,193.15,2.84]
[1755439100447,2.78,193.19,193.15,2.84]
[1755439100641,1.04,193.26,193.15,2.84]
[1755439100846,2.78,193.24,193.17,2.61442794]
[1755439101050,3.93516234,193.23,193.18,2.89]
[1755439101348,2.78,193.21,193.18,2.89]
[1755439101940,2.78,193.2,193.18,2.89]
[1755439102137,2.78,193.26,193.17,2.61442794]
[1755439102341,2.78,193.24,193.15,130.63]
[1755439102540,2.78,193.22,193.18,2.89]
[1755439103251,2.78,193.28,193.21,2.89]
[1755439103436,2.78,193.26,193.21,2.89]
[1755439103641,6.713606,193.25,193.21,2.89]
[1755439103841,2.78,193.25,193.21,2.89]
[1755439104246,1.04,193.25,193.21,2.89]
[1755439104450,1.04,193.25,193.23,2.61442794]
[1755439104654,2.78,193.26,193.25,2.89]
[1755439104852,6.71174914,193.26,193.25,2.89]
[1755439106637,2.78,193.28,193.25,2.89]
[1755439107443,5.77548179,193.36,193.25,2.89]
[1755439107644,2.78,193.27,193.25,2.89]
[1755439108152,2.78,193.27,193.26,2.89]
[1755439112353,2.78,193.36,193.26,2.89]
[1755439112555,2.78,193.34,193.26,2.89]
[1755439112747,2.78,193.32,193.26,2.89]
[1755439112943,2.78,193.3,193.27,2.89]
[1755439113455,3.82,193.3,193.27,2.89]
[1755439113853,5.77548179,193.38,193.26,2.61442794]
[1755439114156,2.78,193.36,193.3,2.89]
[1755439114550,8.38990973,193.43,193.3,2.89]
[1755439114551,2.78,193.34,193.3,2.89]
[1755439114952,1.04,193.34,193.29,5.50442794]
[1755439115144,2.78,193.33,193.29,5.50442794]
[1755439115345,2.78,193.33,193.3,2.89]
[1755439117855,2.78,193.31,193.27,2.89]
[1755439118047,2.78,193.31,193.25,5.50442794]
[1755439118251,2.78,193.29,193.25,2.89]
[1755439118860,2.78,193.27,193.25,2.89]
[1755439119251,2.78,193.26,193.25,2.89]
[1755439120459,2.78,193.28,193.25,2.89]
[1755439120658,2.78,193.35,193.24,2.89]
[1755439120859,3.91000817,193.34,193.24,2.89]
[1755439121158,2.78,193.32,193.24,2.89]
[1755439121756,2.78,193.3,193.22,2.89]
[1755439128751,2.78,193.3,193.23,2.98]
[1755439129159,2.78,193.3,193.24,2.98]
[1755439129357,1.04,193.29,193.24,2.98]
[1755439129557,3.05,193.27,193.24,2.98]
[1755439130660,3.05,193.29,193.24,2.98]
[1755439130863,1.04,193.36,193.24,2.98]
[1755439131165,3.05,193.34,193.24,2.98]
[1755439131368,3.9120825,193.33,193.24,2.98]
[1755439131660,3.05,193.31,193.24,2.98]
[1755439132360,3.05,193.31,193.24,130.38]
[1755439132565,3.05,193.31,193.25,2.98]
[1755439134262,3.05,193.31,193.24,130.38]
[1755439134463,3.05,193.29,193.25,2.98]
[1755439134666,3.05,193.29,193.26,2.98]
[1755439134865,3.05,193.27,193.26,2.98]
[1755439135266,4.09,193.27,193.26,2.98]
[1755439142267,4.09,193.27,193.24,127.4]
[1755439142469,1.04,193.27,193.25,2.98]
[1755439142662,3.05,193.26,193.25,2.98]
[1755439147389,3.05,193.26,193.25,130.38]
[1755439149592,3.05,193.26,193.25,2.98]
[1755439149788,3.05,193.26,193.25,130.38]
[1755439151796,3.05,193.26,193.25,2.98]
[1755439152096,3.05,193.26,193.24,127.4]
[1755439152691,3.05,193.26,193.24,130.38]
[1755439154695,3.05,193.26,193.24,2.98]
[1755439155096,3.05,193.26,193.25,2.98]
[1755439156399,3.05,193.26,193.25,4.65811942]
[1755439156603,3.05,193.29,193.25,1.67811942]
[1755439156795,1.67811942,193.33,193.26,2.98]
[1755439156796,3.05,193.27,193.26,2.98]
[1755439156996,6.98409801,193.27,193.26,2.98]
[1755439157297,6.98409801,193.27,193.25,1.67811942]
[1755439157601,3.05,193.32,193.25,1.67811942]
[1755439157797,2.93,193.3,193.25,1.67811942]
[1755439157999,2.93,193.28,193.25,1.67811942]
[1755439158201,2.93,193.26,193.25,4.45811942]
[1755439159605,2.93,193.26,193.25,2.78]
[1755439160104,6.86656639,193.26,193.24,1.67811942]
[1755439160304,1.04,193.26,193.23,4.45811942]
[1755439160508,2.93,193.24,193.23,4.45811942]
[1755439161506,2.93,193.3,193.23,1.67811942]
[1755439161702,8.43775346,193.29,193.23,4.45811942]
[1755439161900,3.93912425,193.28,193.23,4.45811942]
[1755439162103,2.93,193.26,193.23,4.45811942]
[1755439162302,1.04,193.3,193.23,4.45811942]
[1755439162303,3.94151204,193.25,193.23,4.45811942]
[1755439162602,2.93,193.24,193.23,4.45811942]
[1755439163217,2.93,193.24,193.23,2.78]
[1755439163509,2.93,193.24,193.23,4.45811942]
[1755439166713,2.93,193.24,193.23,2.78]
[1755439166914,2.93,193.24,193.23,4.45811942]
[1755439167209,3.97,193.24,193.15,347.56]
[1755439167413,3.94188829,193.23,193.2,1.67811942]
[1755439167714,2.93,193.22,193.2,2.78]
[1755439167913,2.93,193.22,193.2,4.45811942]
[1755439168106,1.67811942,193.27,193.2,4.45811942]
[1755439168107,3.97,193.21,193.2,4.45811942]
[1755439168308,2.93,193.21,193.2,4.45811942]
[1755439168507,3.97,193.21,193.2,4.45811942]
[1755439174318,3.97,193.21,193.2,2.78]
[1755439176319,3.97,193.21,193.19,129.03811942]
[1755439176619,2.93,193.2,193.19,129.03811942]
[1755439176818,2.93,193.2,193.19,127.36]
[1755439177011,3.97,193.2,193.17,127.36]
[1755439177219,2.93,193.23,193.17,127.36]
[1755439177519,2.93,193.21,193.17,127.36]
[1755439177719,2.93,193.21,193.17,130.14]
[1755439177916,1.04,193.2,193.17,131.81811942]
[1755439178109,2.93,193.19,193.17,131.81811942]
[1755439178513,2.93,193.18,193.17,131.81811942]
[1755439178714,2.93,193.22,193.18,2.78]
[1755439178919,2.93,193.22,193.21,2.78]
[1755439179116,2.93,193.22,193.2,1.67811942]
[1755439179318,3.97,193.21,193.2,4.45811942]
[1755439179518,2.93,193.21,193.2,4.45811942]
[1755439179722,3.97,193.21,193.2,4.45811942]
[1755439181118,1.04,193.21,193.2,1.67811942]
[1755439181319,3.97,193.21,193.2,4.45811942]
[1755439183224,3.97,193.21,193.2,2.78]
[1755439183420,1.04,193.21,193.2,1.67811942]
[1755439184023,3.97,193.21,193.2,1.67811942]
[1755439184825,2.93,193.21,193.2,1.67811942]
[1755439186327,2.93,193.21,193.19,4.45811942]
[1755439187931,2.97,193.2,193.19,4.45811942]
[1755439188328,1.67811942,193.27,193.19,4.45811942]
[1755439188534,2.97,193.22,193.21,4.62811942]
[1755439191421,2.97,193.22,193.21,2.95]
[1755439191632,2.97,193.22,193.21,4.62811942]
[1755439191829,2.97,193.22,193.21,1.67811942]
[1755439192132,2.97,193.22,193.21,4.62811942]
[1755439193629,2.97,193.22,193.21,2.95]
[1755439193829,2.97,193.22,193.21,4.62811942]
[1755439196539,2.97,193.22,193.21,1.67811942]
[1755439197534,7.992659,193.22,193.18,130.29]
[1755439197840,2.97,193.25,193.19,1.67811942]
[1755439198137,2.97,193.23,193.19,1.67811942]
[1755439198333,3.98284815,193.22,193.19,1.67811942]
[1755439198531,2.97,193.21,193.19,4.62811942]
[1755439199635,2.97,193.21,193.19,1.67811942]
[1755439199835,2.97,193.21,193.2,2.95]
[1755439200237,4.01,193.21,193.2,2.95]
[1755439200831,2.97,193.27,193.2,2.95]
[1755439201036,2.97,193.25,193.23,2.95]
[1755439201239,2.97,193.23,193.2,4.62811942]
[1755439201637,2.97,193.23,193.21,2.95]
[1755439201837,2.97,193.23,193.21,1.67811942]
[1755439202037,2.97,193.23,193.22,2.95]
[1755439202233,6.95320541,193.23,193.22,2.95]
[1755439202937,2.97,193.29,193.22,2.95]
[1755439203246,3.9831557,193.28,193.26,2.95]
[1755439203442,2.97,193.29,193.28,1.67811942]
[1755439203643,6.95180333,193.29,193.28,1.67811942]
[1755439204051,2.97,193.36,193.28,1.67811942]
[1755439204253,2.97,193.36,193.22,127.3]
[1755439204254,2.97,193.34,193.31,1.67811942]
[1755439204450,2.97,193.32,193.31,1.67811942]
[1755439204647,6.95132146,193.32,193.31,1.67811942]
[1755439204842,6.95132146,193.32,193.31,4.62811942]
[1755439205045,7.99132146,193.32,193.31,1.67811942]
[1755439205247,4.01,193.32,193.31,4.62811942]
[1755439205754,2.97,193.34,193.31,4.62811942]
[1755439205952,2.97,193.34,193.33,4.62811942]
[1755439206252,6.94650258,193.34,193.33,2.95]
[1755439206452,2.97,193.34,193.33,2.95]
[1755439207645,2.97,193.34,193.31,2.95]
[1755439207841,2.97,193.32,193.3,2.62007297]
[1755439208047,2.97,193.32,193.29,2.95]
[1755439208448,2.97,193.32,193.3,2.95]
[1755439209651,2.97,193.32,193.29,2.95]
[1755439210048,2.97,193.32,193.28,2.62007297]
[1755439210351,2.97,193.32,193.3,2.95]
[1755439211756,1.04,193.31,193.25,5.57007297]
[1755439211958,2.97,193.3,193.22,5.57007297]
[1755439212148,2.97,193.29,193.22,5.57007297]
[1755439212350,2.97,193.28,193.23,2.95]
[1755439213047,2.97,193.28,193.2,2.62007297]
[1755439213248,2.97,193.26,193.21,2.95]
[1755439213655,2.97,193.25,193.21,2.95]
[1755439214158,2.97,193.24,193.21,2.95]
[1755439214558,2.97,193.24,193.22,2.95]
[1755439215157,2.97,193.23,193.22,2.95]
[1755439216559,2.97,193.23,193.2,2.62007297]
[1755439216560,2.97,193.22,193.2,5.57007297]
[1755439216758,2.97,193.21,193.2,5.57007297]
[1755439217256,4.01,193.21,193.17,2.95]
[1755439217463,2.97,193.2,193.18,3.02]
[1755439217764,3.05,193.19,193.18,3.02]
[1755439218262,1.04,193.19,193.16,2.62007297]
[1755439218461,3.05,193.17,193.16,5.64007297]
[1755439219259,3.05,193.16,193.13,5.64007297]
[1755439219465,3.05,193.24,193.14,3.02]
[1755439219659,3.96946838,193.23,193.14,3.02]
[1755439219859,4.09,193.24,193.14,3.02]
[1755439220061,3.9528554,193.23,193.14,3.02]
[1755439220258,3.05,193.22,193.14,3.02]
[1755439220964,3.05,193.2,193.14,3.02]
[1755439221363,3.05,193.18,193.14,3.02]
[1755439221565,3.05,193.17,193.14,3.02]
[1755439221954,3.05,193.24,193.14,3.02]
[1755439222162,3.05,193.22,193.14,3.02]
[1755439222662,3.05,193.2,193.14,3.02]
[1755439223157,3.05,193.18,193.14,3.02]
[1755439223362,3.05,193.18,193.13,2.62007297]
[1755439223363,3.05,193.18,193.15,3.02]
[1755439223563,2.62007297,193.32,193.13,2.62007297]
[1755439223759,3.05,193.27,193.14,3.02]
[1755439223959,3.05,193.27,193.13,2.62007297]
[1755439223960,2.62007297,193.22,193.11,3.02]
[1755439224270,3.05,193.2,193.11,3.02]
[1755439224664,3.05,193.2,193.1,2.62007297]
[1755439224665,3.05,193.18,193.1,2.62007297]
[1755439225065,3.05,193.18,193.09,3.02]
[1755439225669,1.04,193.17,193.11,3.02]
[1755439225970,3.05,193.23,193.14,3.02]
[1755439226263,3.05,193.23,193.17,3.02]
[1755439226473,3.05,193.21,193.16,2.62007297]
[1755439227064,2.62007297,193.28,193.16,2.62007297]
[1755439227065,3.05,193.18,193.17,3.02]
[1755439227266,2.62007297,193.28,193.16,5.64007297]
[1755439227267,3.05,193.19,193.16,5.64007297]
[1755439227769,4.09,193.19,193.16,5.64007297]
[1755439228062,3.05,193.17,193.16,5.64007297]
[1755439228264,1.04,193.17,193.13,2.62007297]
[1755439228469,4.09,193.16,193.13,5.64007297]
[1755439228684,3.05,193.24,193.13,3.02]
[1755439228863,3.05,193.22,193.13,3.02]
[1755439229162,3.05,193.2,193.1,5.64007297]
[1755439229470,3.05,193.2,193.11,3.02]
[1755439229769,3.05,193.18,193.11,3.02]
[1755439230157,3.05,193.16,193.12,3.02]
[1755439230361,3.05,193.16,193.14,3.02]
[1755439230557,4.09,193.15,193.14,3.02]
[1755439230764,3.05,193.15,193.14,3.02]
[1755439231063,3.05,193.17,193.14,3.02]
[1755439231369,3.05,193.16,193.15,3.02]
[1755439231775,4.09,193.16,193.15,3.02]
[1755439232972,4.09,193.16,193.1,2.62007297]
[1755439233163,3.05,193.15,193.11,3.02]
[1755439234372,3.05,193.14,193.11,3.02]
[1755439234573,3.05,193.13,193.12,3.02]
[1755439235074,1.04,193.16,193.11,3.02]
[1755439235373,3.05,193.15,193.11,3.02]
[1755439236475,1.04,193.16,193.11,3.02]
[1755439236777,3.05,193.14,193.11,3.02]
[1755439237076,3.05,193.13,193.12,3.02]
[1755439238772,1.04,193.16,193.12,3.02]
[1755439238976,3.05,193.14,193.12,3.02]
[1755439239474,3.05,193.14,193.13,3.02]
[1755439241976,3.05,193.14,193.1,2.62007297]
[1755439242177,3.05,193.14,193.12,3.02]
[1755439242479,3.05,193.13,193.11,3.02]
[1755439242682,1.04,193.24,193.11,3.02]
[1755439242879,3.05,193.12,193.11,3.02]
[1755439243177,5.67007297,193.22,193.1,2.62007297]
[1755439243383,3.05,193.2,193.1,2.62007297]
[1755439243882,3.05,193.2,193.07,89.73187981]
[1755439244178,3.05,193.18,193.08,3.02]
[1755439246876,1.04,193.17,193.07,2.62007297]
[1755439247078,3.05,193.18,193.08,3.02]
[1755439247684,1.04,193.17,193.08,3.02]
[1755439247886,2.92,193.16,193.08,3.02]
[1755439248584,2.92,193.16,193.07,2.62007297]
[1755439248585,2.92,193.14,193.07,2.62007297]
[1755439248984,1.04,193.13,193.08,3.03]
[1755439249286,2.92,193.11,193.08,3.03]
[1755439249886,2.92,193.1,193.08,3.03]
[1755439250581,2.92,193.18,193.08,3.03]
[1755439250786,2.92,193.18,193.13,3.03]
[1755439251178,1.04,193.17,193.13,3.03]
[1755439251381,2.92,193.15,193.12,2.62007297]
[1755439251586,2.92,193.14,193.13,3.03]
[1755439253985,7.79024297,193.25,193.13,3.03]
[1755439253986,2.92,193.24,193.13,3.03]
[1755439254181,2.92,193.22,193.13,3.03]
[1755439254483,2.92,193.2,193.13,3.03]
[1755439256480,2.92,193.18,193.13,3.03]
[1755439256688,2.92,193.18,193.12,2.62007297]
[1755439257389,4.99709708,193.17,193.09,5.65007297]
[1755439257583,2.92,193.16,193.1,3.03]
[1755439258090,2.92,193.21,193.1,3.03]
[1755439258387,2.92,193.19,193.1,3.03]
[1755439258584,2.92,193.17,193.1,3.03]
[1755439258785,2.92,193.15,193.1,3.03]
[1755439259387,2.92,193.15,193.11,3.03]
[1755439259685,1.04,193.14,193.11,3.03]
[1755439259891,2.92,193.12,193.11,3.03]
[1755439264289,2.92,193.12,193.09,3.03]
[1755439264594,2.92,193.1,193.08,5.65007297]
[1755439264787,2.92,193.19,193.09,3.03]
[1755439264991,1.04,193.2,193.12,3.03]
[1755439264992,2.92,193.17,193.12,3.03]
[1755439265490,2.92,193.15,193.13,3.03]
[1755439265894,1.04,193.14,193.13,3.03]
[1755439266085,2.92,193.14,193.13,3.03]
[1755439266288,3.96,193.14,193.13,3.03]
[1755439266985,2.92,193.13,193.11,5.65007297]
[1755439267181,2.92,193.12,193.11,5.65007297]
[1755439268085,2.92,193.12,193.11,3.03]
[1755439268586,2.92,193.21,193.11,3.03]
[1755439268884,2.92,193.19,193.11,3.03]
[1755439269085,3.96602867,193.18,193.11,3.03]
[1755439269293,2.92,193.16,193.11,3.03]
[1755439269482,2.92,193.14,193.11,3.03]
[1755439270188,2.92,193.14,193.08,2.62007297]
[1755439270405,3.96,193.14,193.12,3.03]
[1755439270592,2.92,193.14,193.12,3.03]
[1755439270895,5.78390664,193.22,193.12,3.03]
[1755439270896,3.96,193.13,193.12,3.03]
[1755439271202,2.92,193.13,193.12,3.03]